fUST/lending_fUST_20260504
["ID","MTS","AMOUNT","RATE_DAILY","PERIOD"]
[421529188,1777828241000,-341.0,0.00016438,2]
[421529189,1777828241000,-341.0,0.00016438,2]
[421529190,1777828241000,-341.0,0.00016438,2]
[421529197,1777828241000,-341.0,0.00016438,2]
[421529200,1777828241000,-341.0,0.00016438,2]
[421529199,1777828241000,-341.0,0.00016438,2]
[421529198,1777828241000,-341.0,0.00016438,2]
[421529202,1777828241000,-341.0,0.00016438,2]
[421529191,1777828241000,-500.0,0.00016438,2]
[421529201,1777828241000,-341.0,0.00016438,2]
[421529203,1777828241000,-341.0,0.00016438,2]
[421529196,1777828241000,-530.86110899,0.00016438,2]
[421529193,1777828241000,-341.0,0.00016438,2]
[421529194,1777828241000,-341.0,0.00016438,2]
[421529195,1777828241000,-500.0,0.00016438,2]
[421529204,1777828241000,-808.58,0.00016438,2]
[421529207,1777828241000,-341.0,0.00016438,2]
[421529206,1777828241000,-341.0,0.00016438,2]
[421529205,1777828241000,-356.70008705,0.00016438,2]
[421529214,1777828241000,-500.0,0.00016438,2]
[421529209,1777828241000,-341.0,0.00016438,2]
[421529211,1777828241000,-341.0,0.00016438,2]
[421529215,1777828241000,-341.0,0.00016438,2]
[421529208,1777828241000,-500.0,0.00016438,2]
[421529240,1777828241000,-2517.67,0.00016438,2]
[421529255,1777828241000,-500.0,0.00016438,2]
[421529247,1777828241000,-500.0,0.00016438,2]
[421529276,1777828241000,-500.0,0.00016438,2]
[421529275,1777828241000,-511.61,0.00016438,2]
[421529282,1777828241000,-743.37,0.00016438,2]
[421529283,1777828241000,-1213.04,0.00016438,2]
[421529277,1777828241000,-500.0,0.00016438,2]
[421529285,1777828241000,-1520.07,0.00016438,2]
[421529296,1777828241000,-500.0,0.00016438,2]
[421529295,1777828241000,-500.0,0.00016438,2]
[421529291,1777828241000,-500.0,0.00016438,2]
[421529287,1777828241000,-500.0,0.00016438,2]
[421529294,1777828241000,-500.0,0.00016438,2]
[421529286,1777828241000,-500.0,0.00016438,2]
[421529289,1777828241000,-1539.6989,0.00016438,2]
[421529288,1777828241000,-2461.64,0.00016438,2]
[421529293,1777828241000,-500.0,0.00016438,2]
[421529284,1777828241000,-500.0,0.00016438,2]
[421529292,1777828241000,-500.0,0.00016438,2]
[421529290,1777828241000,-500.0,0.00016438,2]
[421529297,1777828241000,-500.0,0.00016438,2]
[421529301,1777828241000,-906.69,0.00016438,2]
[421529298,1777828241000,-500.0,0.00016438,2]
[421529300,1777828241000,-1720.93,0.00016438,2]
[421529306,1777828241000,-500.0,0.00016438,2]
[421529303,1777828241000,-819.54,0.00016438,2]
[421529299,1777828241000,-874.94,0.00016438,2]
[421529305,1777828241000,-500.0,0.00016438,2]
[421529245,1777828241000,-500.0,0.00016438,2]
[421529278,1777828241000,-3116.83,0.00016438,2]
[421529280,1777828241000,-1471.14,0.00016438,2]
[421529302,1777828241000,-500.0,0.00016438,2]
[421529272,1777828241000,-361.85456229,0.00016438,2]
[421529279,1777828241000,-500.0,0.00016438,2]
[421529248,1777828241000,-500.0,0.00016438,2]
[421529246,1777828241000,-1105.32,0.00016438,2]
[421529304,1777828241000,-584.15706438,0.00016438,2]
[421529253,1777828241000,-500.0,0.00016438,2]
[421529252,1777828241000,-500.0,0.00016438,2]
[421529250,1777828241000,-674.18,0.00016438,2]
[421529256,1777828241000,-627.51,0.00016438,2]
[421529251,1777828241000,-925.69,0.00016438,2]
[421529254,1777828241000,-500.0,0.00016438,2]
[421529257,1777828241000,-1602.7,0.00016438,2]
[421529258,1777828241000,-500.0,0.00016438,2]
[421529262,1777828241000,-500.0,0.00016438,2]
[421529263,1777828241000,-500.0,0.00016438,2]
[421529249,1777828241000,-500.0,0.00016438,2]
[421529265,1777828241000,-500.0,0.00016438,2]
[421529281,1777828241000,-500.0,0.00016438,2]
[421529273,1777828241000,-537.59,0.00016438,2]
[421529274,1777828241000,-500.0,0.00016438,2]
[421529271,1777828241000,-1167.9,0.00016438,2]
[421529264,1777828241000,-936.24,0.00016438,2]
[421529269,1777828241000,-500.0,0.00016438,2]
[421529268,1777828241000,-500.0,0.00016438,2]
[421529267,1777828241000,-500.0,0.00016438,2]
[421529261,1777828241000,-500.0,0.00016438,2]
[421529260,1777828241000,-648.58,0.00016438,2]
[421529266,1777828241000,-500.0,0.00016438,2]
[421529259,1777828241000,-502.14351029,0.00016438,2]
[421529270,1777828241000,-500.0,0.00016438,2]
[421529348,1777828242000,-500.0,0.00016438,2]
[421529346,1777828242000,-500.0,0.00016438,2]
[421529356,1777828242000,-551.0,0.00016438,2]
[421529340,1777828242000,-500.0,0.00016438,2]
[421529343,1777828242000,-500.0,0.00016438,2]
[421529338,1777828242000,-500.0,0.00016438,2]
[421529339,1777828242000,-500.0,0.00016438,2]
[421529337,1777828242000,-640.35658762,0.00016438,2]
[421529336,1777828242000,-1941.76,0.00016438,2]
[421529344,1777828242000,-4648.26,0.00016438,2]
[421529341,1777828242000,-500.0,0.00016438,2]
[421529358,1777828242000,-500.0,0.00016438,2]
[421529352,1777828242000,-798.75,0.00016438,2]
[421529364,1777828242000,-500.0,0.00016438,2]
[421529366,1777828242000,-500.0,0.00016438,2]
[421529360,1777828242000,-500.0,0.00016438,2]
[421529362,1777828242000,-500.0,0.00016438,2]
[421529354,1777828242000,-500.0,0.00016438,2]
[421529350,1777828242000,-500.0,0.00016438,2]
[421529369,1777828242000,-452.24850502,0.00016438,2]
[421529379,1777828242000,-500.0,0.00016438,2]
[421529380,1777828242000,-500.0,0.00016438,2]
[421529368,1777828242000,-242.76143667,0.00016438,2]
[421529381,1777828242000,-500.0,0.00016438,2]
[421529333,1777828242000,-500.0,0.00016438,2]
[421529345,1777828242000,-500.0,0.00016438,2]
[421529335,1777828242000,-687.86,0.00016438,2]
[421529322,1777828242000,-500.0,0.00016438,2]
[421529334,1777828242000,-940.435603,0.00016438,2]
[421529375,1777828242000,-582.92,0.00016438,2]
[421529307,1777828242000,-500.0,0.00016438,2]
[421529308,1777828242000,-167.008056,0.00016438,2]
[421529310,1777828242000,-500.0,0.00016438,2]
[421529315,1777828242000,-182.122467,0.00016438,2]
[421529309,1777828242000,-500.0,0.00016438,2]
[421529312,1777828242000,-500.0,0.00016438,2]
[421529311,1777828242000,-167.055944,0.00016438,2]
[421529316,1777828242000,-704.25,0.00016438,2]
[421529314,1777828242000,-500.0,0.00016438,2]
[421529313,1777828242000,-500.0,0.00016438,2]
[421529320,1777828242000,-500.19676308,0.00016438,2]
[421529342,1777828242000,-500.0,0.00016438,2]
[421529317,1777828242000,-555.46,0.00016438,2]
[421529319,1777828242000,-687.47,0.00016438,2]
[421529326,1777828242000,-500.0,0.00016438,2]
[421529332,1777828242000,-500.0,0.00016438,2]
[421529321,1777828242000,-500.0,0.00016438,2]
[421529324,1777828242000,-3626.45,0.00016438,2]
[421529325,1777828242000,-500.0,0.00016438,2]
[421529323,1777828242000,-500.0,0.00016438,2]
[421529328,1777828242000,-500.0,0.00016438,2]
[421529329,1777828242000,-989.18,0.00016438,2]
[421529331,1777828242000,-500.0,0.00016438,2]
[421529327,1777828242000,-500.0,0.00016438,2]
[421529330,1777828242000,-500.0,0.00016438,2]
[421529318,1777828242000,-533.96377916,0.00016438,2]
[421529372,1777828242000,-500.0,0.00016438,2]
[421529370,1777828242000,-602.69197036,0.00016438,2]
[421529378,1777828242000,-500.05769204,0.00016438,2]
[421529423,1777828242000,-7043.71,0.00016438,2]
[421529416,1777828242000,-500.0,0.00016438,2]
[421529415,1777828242000,-2124.33,0.00016438,2]
[421529421,1777828242000,-807.37,0.00016438,2]
[421529414,1777828242000,-1210.74,0.00016438,2]
[421529417,1777828242000,-1351.81,0.00016438,2]
[421529418,1777828242000,-500.0,0.00016438,2]
[421529419,1777828242000,-701.14,0.00016438,2]
[421529420,1777828242000,-500.0,0.00016438,2]
[421529422,1777828242000,-1004.48,0.00016438,2]
[421529425,1777828242000,-500.0,0.00016438,2]
[421529435,1777828242000,-914.57,0.00016438,2]
[421529413,1777828242000,-500.0,0.00016438,2]
[421529424,1777828242000,-500.0,0.00016438,2]
[421529428,1777828242000,-693.33,0.00016438,2]
[421529432,1777828242000,-500.0,0.00016438,2]
[421529431,1777828242000,-3048.74,0.00016438,2]
[421529434,1777828242000,-500.0,0.00016438,2]
[421529433,1777828242000,-500.0,0.00016438,2]
[421529430,1777828242000,-500.0,0.00016438,2]
[421529429,1777828242000,-500.0,0.00016438,2]
[421529436,1777828242000,-500.0,0.00016438,2]
[421529439,1777828242000,-500.0,0.00016438,2]
[421529438,1777828242000,-500.0,0.00016438,2]
[421529437,1777828242000,-500.0,0.00016438,2]
[421529377,1777828242000,-696.37,0.00016438,2]
[421529426,1777828242000,-500.0,0.00016438,2]
[421529412,1777828242000,-500.0,0.00016438,2]
[421529427,1777828242000,-438.51308585,0.00016438,2]
[421529399,1777828242000,-6923.22,0.00016438,2]
[421529371,1777828242000,-500.0,0.00016438,2]
[421529411,1777828242000,-500.0,0.00016438,2]
[421529376,1777828242000,-1053.18,0.00016438,2]
[421529373,1777828242000,-500.0,0.00016438,2]
[421529382,1777828242000,-500.0,0.00016438,2]
[421529384,1777828242000,-500.0,0.00016438,2]
[421529385,1777828242000,-500.0,0.00016438,2]
[421529383,1777828242000,-500.0,0.00016438,2]
[421529391,1777828242000,-607.37,0.00016438,2]
[421529395,1777828242000,-2045.98,0.00016438,2]
[421529386,1777828242000,-500.0,0.00016438,2]
[421529389,1777828242000,-672.86,0.00016438,2]
[421529387,1777828242000,-500.0,0.00016438,2]
[421529393,1777828242000,-1648.35,0.00016438,2]
[421529388,1777828242000,-1269.9,0.00016438,2]
[421529409,1777828242000,-500.0,0.00016438,2]
[421529410,1777828242000,-607.97,0.00016438,2]
[421529405,1777828242000,-500.0,0.00016438,2]
[421529403,1777828242000,-500.0,0.00016438,2]
[421529406,1777828242000,-500.0,0.00016438,2]
[421529404,1777828242000,-502.42,0.00016438,2]
[421529407,1777828242000,-1418.78,0.00016438,2]
[421529402,1777828242000,-3467.79,0.00016438,2]
[421529401,1777828242000,-233.27127248,0.00016438,2]
[421529400,1777828242000,-631.67,0.00016438,2]
[421529397,1777828242000,-500.0,0.00016438,2]
[421529408,1777828242000,-500.0,0.00016438,2]
[421529487,1777828243000,-677.0,0.00016438,2]
[421529478,1777828243000,-915.36,0.00016438,2]
[421529479,1777828243000,-500.0,0.00016438,2]
[421529485,1777828243000,-502.56145411,0.00016438,2]
[421529495,1777828243000,-500.0,0.00016438,2]
[421529499,1777828243000,-930.31,0.00016438,2]
[421529475,1777828243000,-582.81069793,0.00016438,2]
[421529491,1777828243000,-500.0,0.00016438,2]
[421529489,1777828243000,-500.0,0.00016438,2]
[421529472,1777828243000,-500.0,0.00016438,2]
[421529481,1777828243000,-500.0,0.00016438,2]
[421529474,1777828243000,-1640.08,0.00016438,2]
[421529486,1777828243000,-500.0,0.00016438,2]
[421529494,1777828243000,-500.0,0.00016438,2]
[421529476,1777828243000,-500.0,0.00016438,2]
[421529483,1777828243000,-2946.42,0.00016438,2]
[421529484,1777828243000,-1676.56,0.00016438,2]
[421529490,1777828243000,-500.0,0.00016438,2]
[421529492,1777828243000,-1332.51,0.00016438,2]
[421529500,1777828243000,-671.43,0.00016438,2]
[421529477,1777828243000,-673.31,0.00016438,2]
[421529482,1777828243000,-500.0,0.00016438,2]
[421529498,1777828243000,-500.0,0.00016438,2]
[421529496,1777828243000,-500.0,0.00016438,2]
[421529480,1777828243000,-500.0,0.00016438,2]
[421529488,1777828243000,-2319.93,0.00016438,2]
[421529493,1777828243000,-500.0,0.00016438,2]
[421529502,1777828243000,-500.0,0.00016438,2]
[421529466,1777828243000,-500.0,0.00016438,2]
[421529497,1777828243000,-500.0,0.00016438,2]
[421529471,1777828243000,-444.63368888,0.00016438,2]
[421529440,1777828243000,-3050.95,0.00016438,2]
[421529470,1777828243000,-500.0,0.00016438,2]
[421529447,1777828243000,-500.0,0.00016438,2]
[421529443,1777828243000,-500.55490665,0.00016438,2]
[421529441,1777828243000,-1578.86,0.00016438,2]
[421529442,1777828243000,-500.0,0.00016438,2]
[421529501,1777828243000,-6872.28,0.00016438,2]
[421529445,1777828243000,-500.0,0.00016438,2]
[421529444,1777828243000,-500.0,0.00016438,2]
[421529446,1777828243000,-500.0,0.00016438,2]
[421529452,1777828243000,-500.0,0.00016438,2]
[421529448,1777828243000,-950.2,0.00016438,2]
[421529459,1777828243000,-845.51,0.00016438,2]
[421529461,1777828243000,-11122.647743,0.00016438,2]
[421529460,1777828243000,-500.0,0.00016438,2]
[421529450,1777828243000,-1528.53,0.00016438,2]
[421529449,1777828243000,-1149.43,0.00016438,2]
[421529451,1777828243000,-500.0,0.00016438,2]
[421529457,1777828243000,-663.73,0.00016438,2]
[421529454,1777828243000,-500.0,0.00016438,2]
[421529456,1777828243000,-4147.94,0.00016438,2]
[421529453,1777828243000,-3427.4,0.00016438,2]
[421529458,1777828243000,-2592.11,0.00016438,2]
[421529455,1777828243000,-500.0,0.00016438,2]
[421529463,1777828243000,-500.0,0.00016438,2]
[421529462,1777828243000,-500.0,0.00016438,2]
[421529473,1777828243000,-500.0,0.00016438,2]
[421529464,1777828243000,-500.0,0.00016438,2]
[421529467,1777828243000,-500.0,0.00016438,2]
[421529468,1777828243000,-500.0,0.00016438,2]
[421529465,1777828243000,-500.0,0.00016438,2]
[421529469,1777828243000,-500.0,0.00016438,2]
[421529512,1777828243000,-1101.64,0.00016438,2]
[421529558,1777828243000,-2613.39,0.00016438,2]
[421529503,1777828243000,-500.0,0.00016438,2]
[421529534,1777828243000,-500.0,0.00016438,2]
[421529539,1777828243000,-615.83,0.00016438,2]
[421529542,1777828243000,-500.0,0.00016438,2]
[421529544,1777828243000,-500.0,0.00016438,2]
[421529543,1777828243000,-2178.55,0.00016438,2]
[421529545,1777828243000,-500.0,0.00016438,2]
[421529546,1777828243000,-500.0,0.00016438,2]
[421529547,1777828243000,-1493.22,0.00016438,2]
[421529554,1777828243000,-500.0,0.00016438,2]
[421529551,1777828243000,-500.0,0.00016438,2]
[421529549,1777828243000,-1188.2,0.00016438,2]
[421529550,1777828243000,-1083.99,0.00016438,2]
[421529548,1777828243000,-3642.87,0.00016438,2]
[421529552,1777828243000,-954.7,0.00016438,2]
[421529553,1777828243000,-3727.75,0.00016438,2]
[421529556,1777828243000,-500.0,0.00016438,2]
[421529567,1777828243000,-2166.78,0.00016438,2]
[421529555,1777828243000,-500.0,0.00016438,2]
[421529566,1777828243000,-500.0,0.00016438,2]
[421529557,1777828243000,-500.0,0.00016438,2]
[421529560,1777828243000,-500.0,0.00016438,2]
[421529562,1777828243000,-500.0,0.00016438,2]
[421529561,1777828243000,-500.0,0.00016438,2]
[421529559,1777828243000,-4807.92,0.00016438,2]
[421529565,1777828243000,-500.0,0.00016438,2]
[421529564,1777828243000,-500.0,0.00016438,2]
[421529563,1777828243000,-500.0,0.00016438,2]
[421529568,1777828243000,-500.0,0.00016438,2]
[421529507,1777828243000,-500.44,0.00016438,2]
[421529537,1777828243000,-6896.26,0.00016438,2]
[421529536,1777828243000,-500.0,0.00016438,2]
[421529569,1777828243000,-500.0,0.00016438,2]
[421529531,1777828243000,-687.79,0.00016438,2]
[421529511,1777828243000,-500.0,0.00016438,2]
[421529504,1777828243000,-500.0,0.00016438,2]
[421529514,1777828243000,-500.0,0.00016438,2]
[421529513,1777828243000,-500.0,0.00016438,2]
[421529505,1777828243000,-500.0,0.00016438,2]
[421529506,1777828243000,-500.0,0.00016438,2]
[421529509,1777828243000,-176.59278082,0.00016438,2]
[421529510,1777828243000,-500.0,0.00016438,2]
[421529515,1777828243000,-500.0,0.00016438,2]
[421529516,1777828243000,-546.79,0.00016438,2]
[421529526,1777828243000,-500.0,0.00016438,2]
[421529527,1777828243000,-500.0,0.00016438,2]
[421529528,1777828243000,-500.0,0.00016438,2]
[421529517,1777828243000,-500.0,0.00016438,2]
[421529508,1777828243000,-1000.0,0.00016438,2]
[421529521,1777828243000,-500.0,0.00016438,2]
[421529538,1777828243000,-500.0,0.00016438,2]
[421529519,1777828243000,-423.74405823,0.00016438,2]
[421529540,1777828243000,-500.0,0.00016438,2]
[421529529,1777828243000,-500.0,0.00016438,2]
[421529533,1777828243000,-19714.43,0.00016438,2]
[421529535,1777828243000,-641.41,0.00016438,2]
[421529541,1777828243000,-13239.19,0.00016438,2]
[421529532,1777828243000,-500.0,0.00016438,2]
[421529522,1777828243000,-500.0,0.00016438,2]
[421529524,1777828243000,-1198.04,0.00016438,2]
[421529525,1777828243000,-500.0,0.00016438,2]
[421529523,1777828243000,-500.0,0.00016438,2]
[421529518,1777828243000,-500.0,0.00016438,2]
[421529530,1777828243000,-850.89,0.00016438,2]
[421529520,1777828243000,-2654.2,0.00016438,2]
[421529609,1777828244000,-500.0,0.00016438,2]
[421529617,1777828244000,-500.0,0.00016438,2]
[421529606,1777828244000,-581.67,0.00016438,2]
[421529619,1777828244000,-1048.31,0.00016438,2]
[421529608,1777828244000,-500.0,0.00016438,2]
[421529615,1777828244000,-500.0,0.00016438,2]
[421529616,1777828244000,-500.0,0.00016438,2]
[421529607,1777828244000,-276.37310056,0.00016438,2]
[421529601,1777828244000,-808.8,0.00016438,2]
[421529604,1777828244000,-500.0,0.00016438,2]
[421529612,1777828244000,-610.07,0.00016438,2]
[421529618,1777828244000,-17361.56,0.00016438,2]
[421529599,1777828244000,-19122.11,0.00016438,2]
[421529633,1777828244000,-518.85,0.00016438,2]
[421529610,1777828244000,-1380.88,0.00016438,2]
[421529613,1777828244000,-3402.9,0.00016438,2]
[421529614,1777828244000,-500.0,0.00016438,2]
[421529620,1777828244000,-677.41,0.00016438,2]
[421529626,1777828244000,-500.0,0.00016438,2]
[421529623,1777828244000,-11969.88,0.00016438,2]
[421529622,1777828244000,-569.88012145,0.00016438,2]
[421529628,1777828244000,-500.0,0.00016438,2]
[421529629,1777828244000,-500.0,0.00016438,2]
[421529627,1777828244000,-500.0,0.00016438,2]
[421529632,1777828244000,-500.0,0.00016438,2]
[421529621,1777828244000,-500.0,0.00016438,2]
[421529624,1777828244000,-553.92678845,0.00016438,2]
[421529600,1777828244000,-446.99518182,0.00016438,2]
[421529611,1777828244000,-500.0,0.00016438,2]
[421529603,1777828244000,-1000.0,0.00016438,2]
[421529593,1777828244000,-500.0,0.00016438,2]
[421529602,1777828244000,-642.02,0.00016438,2]
[421529625,1777828244000,-500.0,0.00016438,2]
[421529571,1777828244000,-5394.85,0.00016438,2]
[421529570,1777828244000,-621.39,0.00016438,2]
[421529579,1777828244000,-6972.4,0.00016438,2]
[421529580,1777828244000,-500.0,0.00016438,2]
[421529578,1777828244000,-500.0,0.00016438,2]
[421529572,1777828244000,-500.0,0.00016438,2]
[421529577,1777828244000,-500.0,0.00016438,2]
[421529576,1777828244000,-635.76,0.00016438,2]
[421529575,1777828244000,-500.0,0.00016438,2]
[421529573,1777828244000,-500.0,0.00016438,2]
[421529582,1777828244000,-500.0,0.00016438,2]
[421529592,1777828244000,-774.52,0.00016438,2]
[421529598,1777828244000,-500.0,0.00016438,2]
[421529585,1777828244000,-539.95,0.00016438,2]
[421529583,1777828244000,-500.0,0.00016438,2]
[421529581,1777828244000,-500.0,0.00016438,2]
[421529588,1777828244000,-6503.64,0.00016438,2]
[421529590,1777828244000,-500.0,0.00016438,2]
[421529586,1777828244000,-2643.89,0.00016438,2]
[421529587,1777828244000,-3634.9,0.00016438,2]
[421529591,1777828244000,-500.0,0.00016438,2]
[421529589,1777828244000,-647.52,0.00016438,2]
[421529595,1777828244000,-500.0,0.00016438,2]
[421529597,1777828244000,-500.0,0.00016438,2]
[421529594,1777828244000,-672.86,0.00016438,2]
[421529605,1777828244000,-500.0,0.00016438,2]
[421529596,1777828244000,-500.0,0.00016438,2]
[421529584,1777828244000,-500.0,0.00016438,2]
[421529631,1777828244000,-500.0,0.00016438,2]
[421529574,1777828244000,-500.0,0.00016438,2]
[421529635,1777828244000,-5630.77,0.00016438,2]
[421529665,1777828244000,-500.0,0.00016438,2]
[421529666,1777828244000,-1079.61,0.00016438,2]
[421529670,1777828244000,-2363.52,0.00016438,2]
[421529671,1777828244000,-1342.23,0.00016438,2]
[421529672,1777828244000,-500.0,0.00016438,2]
[421529673,1777828244000,-1204.44,0.00016438,2]
[421529682,1777828244000,-500.0,0.00016438,2]
[421529678,1777828244000,-500.0,0.00016438,2]
[421529681,1777828244000,-500.0,0.00016438,2]
[421529680,1777828244000,-2063.29,0.00016438,2]
[421529675,1777828244000,-1899.43,0.00016438,2]
[421529674,1777828244000,-1970.84,0.00016438,2]
[421529683,1777828244000,-12280.21,0.00016438,2]
[421529663,1777828244000,-500.0,0.00016438,2]
[421529676,1777828244000,-500.0,0.00016438,2]
[421529679,1777828244000,-500.0,0.00016438,2]
[421529684,1777828244000,-500.0,0.00016438,2]
[421529686,1777828244000,-500.0,0.00016438,2]
[421529688,1777828244000,-7098.38,0.00016438,2]
[421529692,1777828244000,-500.0,0.00016438,2]
[421529690,1777828244000,-500.0,0.00016438,2]
[421529689,1777828244000,-500.0,0.00016438,2]
[421529695,1777828244000,-5319.86,0.00016438,2]
[421529691,1777828244000,-1206.86,0.00016438,2]
[421529696,1777828244000,-3043.09,0.00016438,2]
[421529687,1777828244000,-500.0,0.00016438,2]
[421529693,1777828244000,-706.37,0.00016438,2]
[421529694,1777828244000,-4494.95,0.00016438,2]
[421529677,1777828244000,-500.0,0.00016438,2]
[421529667,1777828244000,-533.53,0.00016438,2]
[421529685,1777828244000,-500.0,0.00016438,2]
[421529669,1777828244000,-500.0,0.00016438,2]
[421529664,1777828244000,-1078.11,0.00016438,2]
[421529634,1777828244000,-500.0,0.00016438,2]
[421529642,1777828244000,-500.0,0.00016438,2]
[421529640,1777828244000,-6002.79,0.00016438,2]
[421529638,1777828244000,-1159.87,0.00016438,2]
[421529637,1777828244000,-500.0,0.00016438,2]
[421529636,1777828244000,-500.0,0.00016438,2]
[421529639,1777828244000,-500.0,0.00016438,2]
[421529641,1777828244000,-500.0,0.00016438,2]
[421529644,1777828244000,-500.0,0.00016438,2]
[421529643,1777828244000,-500.0,0.00016438,2]
[421529655,1777828244000,-500.0,0.00016438,2]
[421529645,1777828244000,-5764.09,0.00016438,2]
[421529654,1777828244000,-500.0,0.00016438,2]
[421529646,1777828244000,-500.0,0.00016438,2]
[421529630,1777828244000,-500.0,0.00016438,2]
[421529647,1777828244000,-1104.19,0.00016438,2]
[421529656,1777828244000,-500.0,0.00016438,2]
[421529668,1777828244000,-500.0,0.00016438,2]
[421529658,1777828244000,-500.0,0.00016438,2]
[421529659,1777828244000,-500.0,0.00016438,2]
[421529661,1777828244000,-500.0,0.00016438,2]
[421529662,1777828244000,-990.72,0.00016438,2]
[421529660,1777828244000,-500.0,0.00016438,2]
[421529650,1777828244000,-1494.09,0.00016438,2]
[421529657,1777828244000,-500.0,0.00016438,2]
[421529652,1777828244000,-500.0,0.00016438,2]
[421529649,1777828244000,-7056.96,0.00016438,2]
[421529648,1777828244000,-500.0,0.00016438,2]
[421529653,1777828244000,-1004.51,0.00016438,2]
[421529651,1777828244000,-1584.79,0.00016438,2]
[421529727,1777828245000,-999.92,0.00016438,2]
[421529728,1777828245000,-12235.85,0.00016438,2]
[421529735,1777828245000,-580.42433807,0.00016438,2]
[421529729,1777828245000,-16986.26,0.00016438,2]
[421529732,1777828245000,-500.0,0.00016438,2]
[421529731,1777828245000,-500.0,0.00016438,2]
[421529730,1777828245000,-500.0,0.00016438,2]
[421529734,1777828245000,-500.0,0.00016438,2]
[421529733,1777828245000,-500.0,0.00016438,2]
[421529738,1777828245000,-500.0,0.00016438,2]
[421529743,1777828245000,-500.0,0.00016438,2]
[421529740,1777828245000,-588.55,0.00016438,2]
[421529744,1777828245000,-500.0,0.00016438,2]
[421529742,1777828245000,-3922.19,0.00016438,2]
[421529748,1777828245000,-500.0,0.00016438,2]
[421529750,1777828245000,-500.0,0.00016438,2]
[421529739,1777828245000,-548.33,0.00016438,2]
[421529725,1777828245000,-500.0,0.00016438,2]
[421529749,1777828245000,-500.0,0.00016438,2]
[421529746,1777828245000,-4589.06,0.00016438,2]
[421529745,1777828245000,-555.15668849,0.00016438,2]
[421529752,1777828245000,-500.0,0.00016438,2]
[421529751,1777828245000,-1649.93,0.00016438,2]
[421529754,1777828245000,-500.0,0.00016438,2]
[421529753,1777828245000,-500.0,0.00016438,2]
[421529757,1777828245000,-1061.47,0.00016438,2]
[421529741,1777828245000,-1029.11,0.00016438,2]
[421529737,1777828245000,-500.0,0.00016438,2]
[421529723,1777828245000,-640.72,0.00016438,2]
[421529726,1777828245000,-500.0,0.00016438,2]
[421529758,1777828245000,-500.0,0.00016438,2]
[421529698,1777828245000,-7667.42,0.00016438,2]
[421529697,1777828245000,-6045.68,0.00016438,2]
[421529709,1777828245000,-500.0,0.00016438,2]
[421529699,1777828245000,-500.0,0.00016438,2]
[421529700,1777828245000,-1093.71,0.00016438,2]
[421529708,1777828245000,-500.0,0.00016438,2]
[421529705,1777828245000,-2399.54,0.00016438,2]
[421529703,1777828245000,-519.88,0.00016438,2]
[421529702,1777828245000,-500.0,0.00016438,2]